bitfinex/quotes_ETHUSD_20260130
["timestamp","ask_amount","ask_price","bid_price","bid_amount"]
[1769732150462,4.8909465,2820.9,2820.3,0.00051622]
[1769732151499,4.8909465,2820.7,2820.5,0.001]
[1769732152811,0.743,2820.6,2820.5,0.001]
[1769732153026,5.6339465,2820.6,2820.5,0.001]
[1769732153224,6.28596849,2820.6,2820.5,0.001]
[1769732153702,7.17230473,2820.6,2820.5,0.001]
[1769732154105,4.8909465,2820.5,2820.3,0.00051622]
[1769732154500,4.8909465,2820.5,2820.1,0.002]
[1769732154501,4.8909465,2820.5,2820.1,0.001]
[1769732155741,5.77733084,2820.5,2819.9,0.002]
[1769732155946,4.88505956,2820.3,2819.4,0.88669752]
[1769732158143,4.88505956,2820.1,2819.2,0.002]
[1769732160244,5.77155585,2820.1,2819.2,0.002]
[1769732160859,4.88505956,2820.1,2819.2,0.002]
[1769732161018,5.46221406,2820.0,2819.2,0.002]
[1769732161366,0.743,2819.9,2819.2,4.74721325]
[1769732161512,0.5771545,2820.0,2819.2,4.74721325]
[1769732161712,1.3201545,2820.0,2819.2,4.74721325]
[1769732162155,1.3191545,2820.0,2819.2,4.74721325]
[1769732162329,0.743,2820.1,2819.4,4.74521325]
[1769732162643,6.48870269,2820.4,2819.4,4.74521325]
[1769732162847,0.743,2820.2,2819.4,4.74521325]
[1769732163545,0.743,2820.2,2819.6,0.002]
[1769732163928,6.48870269,2820.4,2819.6,0.002]
[1769732164127,1.39187027,2820.3,2819.6,0.002]
[1769732164446,1.39187027,2820.3,2819.6,0.88865058]
[1769732165816,0.64887027,2820.3,2819.6,0.88865058]
[1769732166022,0.64887027,2820.3,2819.6,5.63386383]
[1769732166224,0.64887027,2820.3,2819.6,0.88865058]
[1769732166431,5.53392983,2820.3,2819.6,0.002]
[1769732166643,0.78805663,2820.2,2819.6,0.002]
[1769732167552,0.78805663,2820.2,2819.6,4.74721325]
[1769732167760,2.34663647,2820.4,2819.6,4.74721325]
[1769732168326,7.23169603,2820.4,2819.7,0.88661914]
[1769732168625,0.002,2820.3,2819.6,5.63384053]
[1769732169259,4.88705956,2820.3,2819.6,0.88862728]
[1769732170458,4.88705956,2820.3,2819.6,0.002]
[1769732170660,0.634729,2820.2,2819.6,0.002]
[1769732171227,1.377729,2820.2,2819.6,0.002]
[1769732175962,1.377729,2820.2,2819.8,0.002]
[1769732176362,0.001,2820.1,2819.8,0.002]
[1769732183962,0.001,2820.1,2819.8,0.001]
[1769732188479,0.001,2820.1,2820.0,0.001]
[1769732196176,0.06265999,2820.0,2819.8,0.001]
[1769732205404,0.002,2820.3,2819.9,4.77747652]
[1769732206506,0.002,2820.3,2820.0,0.88652482]
[1769732206697,0.002,2820.3,2820.0,5.66400134]
[1769732207001,0.002,2820.3,2820.1,4.77747652]
[1769732208597,0.002,2820.3,2820.2,0.88646195]
[1769732208828,0.001,2821.2,2820.3,4.77747652]
[1769732209017,0.001,2821.1,2820.3,4.77747652]
[1769732209572,0.001,2821.0,2820.3,4.77747652]
[1769732209813,4.98681452,2821.0,2820.2,0.88646195]
[1769732210104,0.001,2820.9,2820.2,0.88646195]
[1769732210410,0.001,2820.9,2820.0,3.54609535]
[1769732210411,5.06142945,2820.9,2820.0,3.54609535]
[1769732210584,5.94674493,2820.7,2819.5,8.15054308]
[1769732210785,5.94674493,2820.7,2819.6,0.88665058]
[1769732210988,4.98581452,2820.5,2819.6,0.88665058]
[1769732211300,4.98581452,2820.3,2819.6,0.88665058]
[1769732211505,5.56615746,2820.3,2819.6,0.88665058]
[1769732211881,0.001,2820.2,2819.6,0.88665058]
[1769732212114,0.001,2820.2,2820.0,0.001]
[1769732212416,4.98781452,2820.1,2820.0,0.001]
[1769732212630,5.54363027,2820.1,2820.0,0.001]
[1769732216529,5.26729176,2820.1,2820.0,0.001]
[1769732217033,0.55681575,2820.1,2820.0,0.001]
[1769732217601,0.55781575,2820.1,2820.0,0.001]
[1769732220511,5.10715949,2820.1,2819.8,0.002]
[1769732220710,5.14870638,2820.0,2819.4,0.88871348]
[1769732220908,5.14870638,2820.0,2819.4,0.00100608]
[1769732221113,4.54934374,2819.9,2819.4,0.00100608]
[1769732221544,0.59936264,2820.0,2819.4,0.00100608]
[1769732221842,0.55681575,2820.1,2819.4,0.00100608]
[1769732222402,5.9926538,2820.1,2819.4,0.00100608]
[1769732222598,5.10615949,2820.1,2819.4,0.00100608]
[1769732223015,5.99265593,2820.1,2819.4,0.00100608]
[1769732223413,0.55681575,2820.1,2819.4,4.76185005]
[1769732223629,0.743,2820.0,2819.4,4.76185005]
[1769732224448,0.743,2820.0,2819.6,0.001]
[1769732228239,1.6295255,2820.0,2819.6,0.001]
[1769732228439,0.743,2820.0,2819.6,0.001]
[1769732228641,0.002,2819.9,2819.6,0.001]
[1769732228940,0.62018616,2819.9,2819.6,0.001]
[1769732230809,0.002,2819.9,2819.6,0.001]
[1769732233330,0.002,2819.9,2819.4,4.93984397]
[1769732233515,0.002,2819.9,2819.4,0.002]
[1769732235132,0.002,2819.9,2819.4,0.001]
[1769732235445,4.55134374,2819.9,2819.3,0.88611594]
[1769732235748,5.16953083,2819.9,2819.2,3.37114592]
[1769732236318,5.16953083,2819.9,2819.6,0.001]
[1769732236720,0.001,2819.8,2819.6,0.001]
[1769732237550,4.55034374,2819.8,2819.6,0.001]
[1769732237756,0.51705308,2819.7,2819.6,0.001]
[1769732238751,0.001,2819.8,2819.6,0.001]
[1769732246466,0.001,2819.8,2819.6,4.05e-06]
[1769732253271,4.91784954,2819.8,2819.1,0.002]
[1769732254468,0.07461493,2819.6,2819.1,0.002]
[1769732255070,0.96127186,2819.6,2819.1,0.002]
[1769732255750,0.07461493,2819.6,2819.1,0.002]
[1769732257367,0.96127849,2819.6,2819.1,0.002]
[1769732257547,5.03215245,2819.5,2819.1,0.001]
[1769732258067,5.03215245,2819.5,2818.6,0.88794726]
[1769732258581,5.03215245,2819.5,2818.6,0.00100406]
[1769732258863,0.002,2818.9,2818.6,0.00100406]
[1769732261770,0.002,2818.9,2817.9,3.79773577]
[1769732261771,4.58137437,2818.8,2817.6,4.85164174]
[1769732261947,4.58137437,2818.8,2817.7,5.73888799]
[1769732262151,4.58137437,2818.8,2818.3,0.001]
[1769732262348,4.58137437,2818.8,2817.6,4.85164174]
[1769732262559,4.58137437,2818.6,2817.6,4.85164174]
[1769732262765,4.58137437,2818.6,2817.6,5.73891104]
[1769732263153,4.58137437,2818.6,2817.6,4.85164174]
[1769732263356,4.58137437,2818.5,2817.6,4.85164174]
[1769732263548,6.37550491,2818.6,2817.6,4.85164174]
[1769732263549,5.6770623,2818.4,2817.6,4.85164174]
[1769732263755,1.63005957,2818.3,2817.6,4.85164174]
[1769732264175,1.63005957,2818.3,2817.3,3.54945064]
[1769732264381,6.21143394,2818.3,2817.4,5.73896348]
[1769732264955,12.51232392,2818.3,2817.5,0.88730981]
[1769732265274,1.60604594,2818.2,2817.5,3.96433193]
[1769732265474,4.58137437,2818.1,2817.2,3.54961004]
[1769732265654,4.58137437,2818.1,2817.3,0.88736149]
[1769732265983,5.46851226,2818.1,2817.2,4.85164174]
[1769732266141,0.70745582,2818.0,2817.2,4.85164174]
[1769732267875,0.88701888,2818.5,2817.4,4.85164174]
[1769732268050,0.743,2818.4,2817.4,4.85164174]
[1769732268477,0.88701888,2818.5,2817.4,4.85164174]
[1769732268678,0.743,2818.4,2817.4,4.85164174]
[1769732268974,1.36413932,2818.4,2817.4,5.31450502]
[1769732269278,0.62113932,2818.4,2817.4,5.31450502]
[1769732269577,6.21135959,2818.6,2817.4,5.31450502]
[1769732270556,4.58137437,2818.5,2817.5,5.73895318]
[1769732271895,5.32437437,2818.5,2817.5,5.73895318]
[1769732272049,4.58137437,2818.3,2817.5,0.88731144]
[1769732272691,2.13828276,2818.4,2817.5,5.73895318]
[1769732273190,4.58137437,2818.3,2817.5,0.88731144]
[1769732273772,4.58137437,2818.2,2817.5,0.88731144]
[1769732273976,4.58137437,2818.1,2817.5,0.88731144]
[1769732274288,4.58137437,2818.1,2817.4,0.88932314]
[1769732274489,4.58137437,2817.9,2817.1,0.88941894]
[1769732274656,4.58137437,2817.7,2817.1,0.002]
[1769732275695,5.18522458,2817.6,2817.1,0.002]
[1769732275877,5.18522458,2817.6,2816.7,0.88554791]
[1769732276057,5.18522458,2817.6,2816.7,6.02358363]
[1769732277394,1.08822643,2817.8,2816.7,6.02358363]
[1769732277701,0.88714433,2818.1,2816.9,5.13803572]
[1769732277877,6.81636891,2818.1,2816.9,5.13803572]
[1769732278362,5.18522458,2818.0,2816.9,5.13803572]
[1769732278775,5.18522458,2818.0,2816.7,6.02358363]
[1769732278982,5.18522458,2817.8,2816.7,6.02358363]
[1769732279183,5.18422458,2817.8,2816.7,6.02358363]
[1769732279661,5.18422458,2817.8,2816.7,0.88554791]
[1769732279855,5.18522458,2817.5,2816.7,0.88554791]
[1769732280575,0.68163689,2817.9,2816.7,6.02358363]
[1769732280772,6.07239636,2818.0,2816.8,5.13803572]
[1769732280773,5.18522458,2818.0,2816.8,5.13803572]
[1769732280973,5.92922458,2818.0,2817.0,5.13803572]
[1769732281193,0.744,2817.9,2816.9,6.02553616]
[1769732281374,5.18522458,2817.9,2817.0,5.13803572]
[1769732281771,5.18522458,2818.1,2817.0,5.13803572]
[1769732281965,0.59226485,2819.2,2817.3,5.13803572]
[1769732281966,0.002,2818.6,2817.3,5.13803572]
[1769732282488,6.07419411,2818.6,2817.3,5.13803572]
[1769732282718,5.18522458,2818.4,2817.0,5.13803572]
[1769732283009,5.18522458,2818.2,2817.1,0.88743743]
[1769732283167,5.18522458,2818.2,2817.1,6.02547315]
[1769732283566,5.18522458,2818.1,2817.1,0.88743743]
[1769732284482,5.18522458,2818.1,2817.2,0.002]
[1769732284804,5.18522458,2817.8,2817.2,0.001]
[1769732285100,5.18522458,2817.7,2817.2,0.001]
[1769732287679,6.07148943,2817.7,2817.2,0.001]
[1769732288712,1.63124034,2817.8,2817.0,8.11e-06]
[1769732288913,5.18522458,2817.7,2817.0,8.11e-06]
[1769732289494,5.92922458,2817.7,2817.0,8.11e-06]
[1769732289702,5.18522458,2817.5,2817.0,8.11e-06]
[1769732292226,5.18522458,2817.3,2817.0,8.11e-06]
[1769732292924,6.07255716,2817.5,2817.0,8.11e-06]
[1769732293128,0.96217271,2817.4,2817.0,8.11e-06]
[1769732294490,5.18522458,2817.5,2817.0,8.11e-06]
[1769732295794,5.18522458,2817.5,2816.2,6.02575676]
[1769732295795,5.25983951,2817.5,2816.2,0.88772104]
[1769732295998,5.25983951,2817.5,2816.2,6.02575676]
[1769732296210,5.18422458,2817.3,2816.2,6.02575676]
[1769732296412,0.88740593,2817.2,2816.2,6.02575676]
[1769732296626,6.07263051,2817.2,2816.2,6.02575676]
[1769732297388,5.92922458,2817.2,2817.0,0.001]
[1769732299030,0.88743743,2817.1,2817.0,0.001]
[1769732299211,1.84965736,2817.1,2817.0,0.001]
[1769732299511,0.96221993,2817.1,2817.0,0.001]
[1769732300500,0.68911195,2817.4,2817.0,0.001]
[1769732300695,0.744,2817.5,2817.0,0.001]
[1769732302097,1.63131746,2817.5,2817.0,0.001]
[1769732302500,6.81654204,2817.5,2817.0,0.001]
[1769732303202,5.18522458,2817.4,2817.0,0.001]
[1769732303845,0.88937443,2817.3,2817.0,0.001]
[1769732304015,1.03878779,2817.3,2817.0,0.001]
[1769732304601,6.22401237,2817.3,2817.0,0.001]
[1769732305504,5.42283696,2817.2,2817.0,0.001]
[1769732305707,1.78278779,2817.3,2817.0,0.001]
[1769732306105,2.67016839,2817.3,2817.0,0.001]
[1769732306306,0.26701684,2817.2,2817.0,0.001]
[1769732306601,5.6898538,2817.2,2816.4,0.88762909]
[1769732306807,5.6898538,2817.2,2816.5,0.88762222]
[1769732307008,5.6898538,2817.2,2816.2,8.86598898]
[1769732307207,5.6898538,2817.2,2816.2,3.55079635]
[1769732307443,5.6898538,2817.2,2816.4,0.88765258]
[1769732308135,6.5772891,2817.2,2816.1,5.31519263]
[1769732308338,7.3212891,2817.2,2816.1,5.31519263]
[1769732308555,5.42283696,2817.1,2816.1,5.31519263]
[1769732308839,0.73212891,2817.0,2816.1,5.31519263]
[1769732310340,0.73212891,2817.0,2816.2,6.20291367]
[1769732310505,0.88745283,2817.1,2816.2,6.20291367]
[1769732311034,5.42283696,2817.0,2816.2,0.88772104]
[1769732311228,0.88745283,2817.1,2816.2,6.20291367]
[1769732314848,6.57728312,2817.2,2816.2,6.20291367]
[1769732316549,0.26701684,2817.2,2816.2,6.20291367]
[1769732316849,1.15442639,2817.2,2816.5,5.45587132]
[1769732317746,6.35699327,2817.2,2816.4,0.887658]
[1769732317952,6.35699512,2817.2,2816.4,0.887658]
[1769732318252,6.35699512,2817.2,2816.4,6.34352932]
[1769732319046,1.15442824,2817.2,2816.4,6.34352932]
[1769732319551,0.47050002,2817.1,2816.4,6.34352932]
[1769732319850,0.001,2817.3,2816.4,6.34352932]
[1769732320222,0.88837807,2817.3,2816.4,6.34352932]
[1769732320542,0.001,2817.3,2816.4,6.34352932]
[1769732320720,0.88837604,2817.3,2816.4,6.34352932]
[1769732321250,0.88837604,2817.3,2816.4,6.34552932]
[1769732321464,0.001,2817.0,2816.4,0.889658]
[1769732321822,0.001,2817.0,2816.4,6.34552932]
[1769732322726,0.001,2817.0,2816.4,0.889658]
[1769732323157,0.001,2817.0,2816.4,0.002]
[1769732323561,5.20356688,2817.0,2816.4,0.002]
[1769732323857,0.52035669,2816.9,2816.4,0.002]
[1769732324017,5.20356688,2817.0,2816.4,0.002]
[1769732324454,0.001,2817.0,2816.4,5.45787132]
[1769732324659,0.001,2817.3,2816.5,5.45587132]
[1769732324952,0.88722036,2817.8,2816.5,5.45587132]
[1769732325162,0.9722942,2817.8,2816.7,5.45587132]
[1769732325345,0.00099189,2817.7,2816.9,5.45587132]
[1769732325952,0.97130231,2817.8,2816.9,5.45587132]
[1769732326166,5.20256688,2817.6,2816.8,0.88753195]
[1769732326634,0.00099189,2817.5,2816.8,0.88753195]
[1769732327035,0.00099189,2817.4,2816.8,0.88753195]
[1769732327235,0.00099189,2817.5,2816.8,5.45587132]
[1769732327459,0.88722353,2817.8,2816.8,5.45587132]
[1769732327749,0.00099189,2817.7,2816.8,5.45587132]
[1769732329660,5.20355877,2817.7,2816.9,0.88750044]
[1769732329861,5.812637,2817.7,2816.9,0.88750044]
[1769732332152,0.00099189,2817.6,2816.9,6.34337176]
[1769732332859,5.20256688,2817.7,2816.9,6.34337176]
[1769732333032,0.00099189,2817.6,2816.9,6.34337176]
[1769732333534,0.001,2817.5,2816.9,6.34337176]
[1769732335231,0.00199189,2817.5,2816.9,6.34337176]
[1769732336036,0.001,2817.5,2816.9,6.34337176]
[1769732336242,0.00099189,2817.4,2816.9,0.88750044]
[1769732337374,0.001,2817.5,2816.9,0.88750044]
[1769732337576,0.00099189,2817.4,2816.9,0.88750044]
[1769732338339,0.00099189,2817.4,2816.8,3.55002518]
[1769732338538,0.00099189,2817.3,2816.8,3.55002518]
[1769732338882,0.00099189,2817.4,2816.8,8.88955178]
[1769732339171,0.00099189,2817.4,2816.8,3.55002518]
[1769732339641,0.00099189,2817.3,2816.8,3.55002518]
[1769732339840,5.6986013,2817.4,2816.8,0.88753195]
[1769732340235,5.69760941,2817.2,2816.8,0.88753195]
[1769732340435,5.69760941,2817.2,2816.4,0.002]
[1769732340638,5.69760941,2817.0,2816.4,0.002]
[1769732341490,0.00099189,2816.9,2816.4,0.002]
[1769732341642,5.6986013,2816.9,2816.4,0.002]
[1769732341978,0.00099189,2816.8,2816.4,0.002]
[1769732342659,0.00099189,2816.7,2816.4,0.002]
[1769732342880,0.57075283,2816.8,2816.4,0.002]
[1769732343258,0.00099189,2816.7,2816.4,0.002]
[1769732343658,0.00099189,2816.6,2816.4,0.002]
[1769732343894,5.69760941,2816.8,2816.4,0.002]
[1769732344089,0.57075283,2816.7,2816.4,0.002]
[1769732345293,0.57075283,2816.7,2816.6,0.001]
[1769732346521,0.57075283,2816.7,2816.6,6.08e-06]
[1769732346666,0.00099189,2816.7,2816.6,6.08e-06]
[1769732357280,5.69760941,2817.0,2816.6,6.08e-06]
[1769732357578,0.00099189,2816.9,2816.6,6.08e-06]
[1769732359507,6.5850795,2817.0,2816.6,6.08e-06]
[1769732359508,5.69760941,2816.8,2816.6,6.08e-06]
[1769732359811,5.69760941,2816.8,2816.2,0.88772104]
[1769732359980,5.69760941,2816.8,2816.3,0.00101419]
[1769732362788,5.69760941,2816.8,2816.1,0.002]
[1769732362994,5.69760941,2816.8,2816.2,0.00101419]
[1769732363196,6.33891975,2816.7,2816.3,0.00101419]
[1769732363399,6.33891975,2816.7,2816.2,0.00101419]
[1769732363911,6.33891975,2816.7,2816.1,0.002]
[1769732363912,6.33891975,2816.7,2816.3,0.00101419]
[1769732364121,6.33891975,2816.7,2816.2,0.00101419]
[1769732364284,6.33150138,2816.6,2816.2,0.00101419]
[1769732364484,6.33150138,2816.6,2816.3,0.00101419]
[1769732364814,6.33150138,2816.6,2816.2,0.00101419]
[1769732365195,6.33150138,2816.6,2816.3,0.00101419]
[1769732365506,6.33150138,2816.6,2816.2,0.00101419]
[1769732365902,6.33150138,2816.6,2816.3,0.00101419]
[1769732366095,6.33150138,2816.6,2816.2,0.00101419]
[1769732366711,6.33150138,2816.6,2816.3,0.00101419]
[1769732366914,6.33150138,2816.6,2816.2,0.00101419]
[1769732367315,6.33150138,2816.6,2816.3,0.00101419]
[1769732367517,6.33150138,2816.6,2816.2,0.00101419]
[1769732367917,6.33150138,2816.6,2816.3,0.00101419]
[1769732368119,6.33150138,2816.6,2816.2,0.00101419]
[1769732368517,6.33150138,2816.6,2816.3,0.00101419]
[1769732368820,0.69728117,2816.5,2816.2,0.00101419]
[1769732368987,0.69728117,2816.5,2816.4,0.002]
[1769732369187,6.50649068,2816.5,2816.1,0.002]
[1769732369381,6.50649068,2816.5,2816.1,0.00301419]
[1769732370699,7.39411965,2816.5,2816.1,0.00301419]
[1769732370911,0.81391197,2816.4,2816.1,0.00301419]
[1769732374423,0.81391197,2816.4,2816.0,0.002]
[1769732374609,6.82985275,2816.4,2816.0,0.002]
[1769732375307,7.71751503,2816.4,2816.0,0.002]
[1769732375789,6.01594078,2816.3,2815.8,0.00100203]
[1769732375994,7.14274484,2816.3,2815.4,0.88795267]
[1769732376190,7.14274484,2816.3,2815.4,0.88796708]
[1769732378128,6.01594078,2816.1,2815.2,0.89003637]
[1769732378426,6.75994078,2816.0,2815.2,0.89003637]
[1769732380522,6.75994078,2816.0,2815.2,5.68546964]
[1769732380733,6.75994078,2816.0,2815.6,0.002]
[1769732385828,0.744,2816.0,2815.6,0.002]
[1769732386332,0.001,2816.1,2815.6,0.002]
[1769732387825,0.001,2816.1,2815.6,0.88991021]
[1769732389031,0.001,2816.1,2815.6,6.57337985]
[1769732392742,0.001,2816.6,2815.7,5.68346964]
[1769732393235,0.001,2816.1,2815.7,5.68346964]
[1769732395014,0.001,2816.1,2815.8,0.88784714]
[1769732395215,0.001,2816.1,2815.9,5.68346964]
[1769732397140,0.001,2816.1,2816.0,0.88778409]
[1769732400561,0.001,2816.1,2816.0,6.58259602]
[1769732401059,0.001,2816.6,2816.1,5.69481193]
[1769732401256,0.001,2816.5,2816.1,5.69481193]
[1769732404149,0.001,2816.5,2816.2,0.88772104]
[1769732404849,0.001,2816.3,2816.2,0.88772104]
[1769732411174,0.001,2816.3,2815.9,0.88781561]
[1769732411706,0.001,2816.6,2816.0,5.69481193]
[1769732411896,0.002,2816.6,2816.0,5.69481193]
[1769732413194,0.001,2816.5,2816.1,0.88775256]
[1769732415003,0.001,2816.6,2816.1,6.58256449]
[1769732415201,0.001,2816.6,2816.4,0.887658]
[1769732417110,0.001,2816.6,2816.0,0.88778409]
[1769732417424,0.001,2816.6,2816.0,6.58259602]
[1769732417991,0.001,2816.3,2816.0,0.88778409]
[1769732419736,0.001,2816.3,2815.9,3.55114504]
[1769732419891,0.001,2816.3,2815.8,3.55313636]
[1769732422328,0.002,2816.3,2815.8,3.55313636]
[1769732422620,0.001,2816.3,2815.8,3.55313636]
[1769732423192,0.002,2816.3,2815.8,3.55313636]
[1769732426511,6.1900398,2816.3,2815.8,3.55313636]
[1769732426718,0.001,2816.2,2815.8,3.55313636]
[1769732428118,0.001,2816.1,2815.8,3.55313636]
[1769732428318,0.001,2816.2,2815.8,3.55313636]
[1769732429632,0.001,2816.2,2815.8,0.002]
[1769732429924,6.1890398,2816.2,2815.8,0.002]
[1769732430521,6.1890398,2816.2,2816.0,0.002]
[1769732430700,6.80804378,2816.2,2816.0,0.002]
[1769732432516,0.001,2816.1,2816.0,0.002]
[1769732434029,6.1418953,2816.2,2816.0,0.002]
[1769732434224,0.001,2816.3,2816.0,0.002]
[1769732437727,5.99544113,2816.3,2816.0,0.002]
[1769732440746,0.001,2816.3,2816.0,0.002]
[1769732443545,0.001,2816.3,2816.2,0.002]
[1769732448528,0.001,2816.3,2816.0,0.002]
[1769732454577,0.001,2816.3,2815.8,0.002]
[1769732455678,5.90850857,2816.2,2815.5,0.002]
[1769732455887,6.41178079,2816.2,2815.4,0.002]
[1769732456051,5.90850857,2816.2,2815.4,0.002]
[1769732456246,5.90850857,2816.0,2815.4,0.002]
[1769732456758,6.796309,2816.0,2815.4,0.002]
[1769732457980,6.796309,2816.0,2815.2,0.002]
[1769732457981,13.11225903,2816.0,2815.2,0.002]
[1769732458184,5.90850857,2815.0,2812.6,0.012947]
[1769732458390,5.90850857,2813.9,2812.9,6.36091521]
[1769732458682,3.06837391,2813.8,2813.0,6.54607602]
[1769732458846,3.06837391,2813.8,2813.2,7.24958291]
[1769732459565,3.11785408,2813.7,2813.2,7.24958291]
[1769732459879,3.11785408,2813.7,2813.3,0.18516081]
[1769732460084,0.18514603,2813.8,2813.3,0.18516081]
[1769732460285,1e-08,2813.8,2813.4,6.54607602]
[1769732460578,1e-08,2813.8,2813.4,6.36091521]
[1769732460761,2.55177215,2813.8,2813.5,0.18516081]
[1769732460963,2.55177215,2813.8,2813.6,0.88854137]
[1769732461283,0.8882136,2814.7,2813.6,1.07370218]
[1769732461284,2.04141771,2814.2,2813.6,1.07370218]
[1769732461443,2.24555948,2814.2,2813.7,6.54607602]
[1769732461643,5.90850857,2814.7,2813.7,6.54607602]
[1769732461846,5.90850857,2814.7,2813.8,5.39543383]
[1769732462081,5.90850857,2815.1,2814.2,5.21027302]
[1769732462282,5.90850857,2815.6,2814.2,5.21027302]
[1769732462450,5.90850857,2815.6,2814.4,5.21027302]
[1769732463076,5.90850857,2815.6,2814.5,0.88825723]
[1769732463673,5.90850857,2815.6,2814.6,5.40222506]
[1769732464217,5.90850857,2815.6,2814.7,5.40222506]
[1769732464365,5.90850857,2815.6,2814.7,5.21706425]
[1769732464963,5.90850857,2816.0,2814.8,5.40557719]
[1769732465164,5.90850857,2816.0,2814.9,6.10854739]
[1769732465566,5.90850857,2816.0,2815.0,0.18516081]
[1769732465977,5.90850857,2816.0,2815.1,0.18516081]
[1769732466175,6.58813368,2816.0,2815.1,0.18516081]
[1769732466361,5.90850857,2816.2,2815.2,5.40889081]
[1769732466566,5.90850857,2816.2,2815.2,5.22373]
[1769732467201,5.90850857,2816.2,2815.3,0.88800483]
[1769732467419,0.001,2816.3,2815.4,5.48041223]
[1769732467571,0.001,2816.3,2815.5,5.48041223]
[1769732467770,0.001,2816.3,2815.5,5.66557304]
[1769732468009,0.001,2816.3,2815.6,0.18516081]
[1769732468506,0.001,2816.3,2815.7,0.18516081]
[1769732468668,0.001,2816.3,2815.6,0.18516081]
[1769732468867,0.001,2816.3,2815.7,0.18516081]
[1769732469100,0.001,2816.3,2815.6,0.18516081]
[1769732469270,0.001,2816.3,2815.7,0.88787868]
[1769732469470,0.001,2816.3,2815.7,1.07303949]
[1769732469671,0.001,2816.3,2815.8,0.18516081]
[1769732470096,0.001,2816.3,2815.9,0.18516081]
[1769732470301,0.001,2816.3,2815.8,0.18516081]
[1769732470708,0.001,2816.3,2815.9,0.18516081]
[1769732471011,0.001,2816.3,2815.8,0.18516081]
[1769732471417,0.001,2816.3,2815.9,7.38892645]
[1769732471581,0.001,2816.6,2815.9,13.74984166]
[1769732471915,0.001,2816.6,2816.0,6.54607602]
[1769732472214,0.001,2816.6,2816.1,0.18516081]
[1769732472579,0.001,2816.6,2816.2,0.18516081]
[1769732472778,0.001,2816.6,2816.1,0.18516081]
[1769732473191,0.001,2816.6,2816.2,0.18516081]
[1769732473390,0.001,2816.6,2816.2,0.88772104]
[1769732473629,0.001,2816.6,2816.3,0.18516081]
[1769732474105,0.001,2816.6,2816.4,0.18516081]
[1769732475804,0.001,2816.6,2816.5,0.88762648]
[1769732476741,0.001,2816.6,2816.4,0.88763574]
[1769732477216,0.001,2816.6,2816.4,1.07279655]
[1769732482827,0.001,2816.6,2816.4,0.88763574]
[1769732483028,0.001,2816.6,2816.4,1.07279655]
[1769732488232,0.001,2816.6,2816.5,0.18516081]
[1769732490936,0.001,2816.6,2816.5,1.07278729]
[1769732492309,0.001,2816.6,2816.5,0.18516081]
[1769732493309,0.001,2816.6,2816.5,1.07278729]
[1769732494741,9.07166377,2817.3,2816.5,1.53514062]
[1769732494910,9.07166377,2817.3,2816.6,0.18516081]
[1769732495309,9.07166377,2817.3,2816.7,0.18516081]
[1769732495639,9.07166377,2817.3,2816.8,0.88753195]
[1769732495836,10.39779385,2817.3,2816.0,9.63389719]
[1769732496042,10.39779385,2817.3,2816.5,0.88760362]
[1769732496230,10.39779385,2817.3,2816.5,0.88762492]
[1769732496540,10.39779385,2817.3,2816.4,0.88763417]
[1769732496720,9.07166377,2817.1,2816.4,0.88763417]
[1769732497831,9.95911311,2817.1,2816.0,0.88778409]
[1769732503426,9.07166377,2817.0,2815.9,3.55123715]
[1769732503638,9.07166377,2816.8,2815.9,3.55123715]
[1769732504843,9.07166377,2816.8,2815.9,0.88781561]
[1769732505236,9.07166377,2816.8,2816.2,0.002]
[1769732505438,9.07166377,2816.6,2816.2,0.002]
[1769732505631,9.07166377,2816.6,2815.5,4.29551472]
[1769732505632,9.07166377,2816.4,2815.1,0.002]
[1769732505840,9.07166377,2816.1,2815.4,0.00100203]
[1769732506011,9.07166377,2816.1,2815.1,0.89004907]
[1769732506651,9.07166377,2816.1,2815.2,0.88803588]
[1769732507149,9.07166377,2816.1,2814.7,13.18662367]
[1769732507150,9.07166377,2815.5,2814.4,0.88827323]
[1769732507447,9.07166377,2815.3,2814.4,0.88827323]
[1769732507659,9.07166377,2815.1,2814.0,3.55563693]
[1769732507949,9.07166377,2815.1,2814.2,0.88835067]
[1769732509241,9.07166377,2814.9,2814.1,3.55353013]
[1769732509433,8.48618938,2814.7,2814.1,3.34338866]
[1769732509753,0.79669099,2814.6,2814.0,0.002]
[1769732510636,0.79669099,2814.6,2814.0,0.89041506]
[1769732513755,0.79669099,2814.6,2813.9,9.86621484]
[1769732514050,0.79669099,2814.6,2814.0,0.88841506]
[1769732514930,0.79669099,2814.6,2813.9,9.86621484]
[1769732515142,0.79669099,2814.6,2814.0,0.88841506]
[1769732515548,12.69829744,2814.6,2813.7,3.55400399]
[1769732515765,12.69829744,2814.6,2813.3,3.55450633]
[1769732515766,11.0133729,2814.4,2813.3,3.55445665]
[1769732515977,11.0133729,2814.2,2813.4,0.88857922]
[1769732516120,11.62582632,2814.1,2813.5,0.88856403]
[1769732516324,0.61245342,2814.0,2813.5,0.88856403]
[1769732517666,0.61245342,2814.0,2813.3,3.55450544]
[1769732519225,0.61245342,2814.0,2813.3,11.40593681]
[1769732519555,0.61245342,2814.0,2813.3,14.13254134]
[1769732519854,0.61245342,2814.0,2813.3,13.07454154]
[1769732520225,0.61245342,2814.0,2813.3,12.35550278]
[1769732520749,0.61245342,2814.0,2813.3,11.98855129]
[1769732523770,13.67684216,2814.0,2813.3,0.8886176]
[1769732524059,11.0133729,2813.8,2813.3,0.8886176]
[1769732524237,11.0133729,2813.8,2813.2,0.88865014]
[1769732525864,11.0133729,2813.8,2812.8,3.55507693]
[1769732526430,11.90185755,2813.8,2812.8,3.55507693]
[1769732526681,11.0133729,2813.6,2812.8,3.55507693]
[1769732529859,11.9019165,2813.6,2812.8,0.88879408]
[1769732530077,11.9019165,2813.6,2812.7,3.5572968]
[1769732530963,11.9019165,2813.6,2813.0,0.002]
[1769732531266,11.0133729,2813.3,2813.0,0.002]
[1769732531468,11.85426184,2813.2,2813.0,0.002]
[1769732531633,11.0133729,2813.2,2812.7,0.002]
[1769732532134,11.90204768,2813.2,2812.7,0.002]
[1769732532559,11.0133729,2813.2,2812.7,0.002]
[1769732532743,12.11481019,2813.2,2812.7,0.002]
[1769732533171,12.11481019,2813.2,2812.6,0.90179489]
[1769732533379,12.11481019,2813.2,2812.6,0.012947]